bitfinex/quotes_ETHUSD_20260113
["timestamp","ask_amount","ask_price","bid_price","bid_amount"]
[1768314061441,7.06774057,3146.3,3145.4,0.248]
[1768314061442,0.96000801,3146.0,3145.4,0.248]
[1768314061741,0.96000801,3146.0,3145.3,3.1793058]
[1768314061926,0.96000801,3145.9,3145.0,3.17961504]
[1768314062127,0.96000801,3145.8,3145.1,0.248]
[1768314062642,0.96000801,3145.8,3145.2,0.248]
[1768314062845,0.96000801,3145.7,3143.9,0.72449013]
[1768314063032,0.96000801,3145.7,3144.6,3.18001239]
[1768314063230,0.96000801,3145.7,3144.7,0.26388561]
[1768314063433,0.96000801,3145.7,3144.4,3.18022786]
[1768314063434,0.96000801,3145.4,3144.4,8.03488347]
[1768314063749,0.96000801,3145.4,3144.5,0.248]
[1768314064045,0.96000801,3145.4,3144.5,3.42812842]
[1768314064245,0.96000801,3145.3,3144.6,0.248]
[1768314066928,0.90640622,3145.8,3145.0,4.85467893]
[1768314067225,0.90640622,3145.7,3145.1,0.248]
[1768314068228,0.90640622,3145.6,3145.1,0.248]
[1768314068828,0.90640622,3145.8,3145.2,3.17944804]
[1768314069442,0.90640622,3145.8,3145.1,3.42749943]
[1768314071668,0.03973046,3146.2,3145.7,4.85467893]
[1768314071848,0.002,3146.3,3145.8,0.248]
[1768314072565,0.90640622,3145.9,3145.1,6.35904856]
[1768314073071,11.62203128,3146.3,3145.2,5.4509696]
[1768314073072,0.90640622,3146.1,3145.2,5.4509696]
[1768314073633,0.90640622,3146.1,3145.3,3.17934696]
[1768314073967,0.90640622,3146.0,3144.9,0.59729067]
[1768314074171,0.90640622,3145.8,3145.1,3.17946098]
[1768314075065,0.90640622,3145.8,3145.1,3.1794998]
[1768314075270,0.90640622,3145.8,3145.2,0.248]
[1768314075429,0.90640622,3145.8,3145.2,3.42744237]
[1768314076939,0.9851563,3146.3,3145.6,4.85467893]
[1768314077139,0.9831563,3146.2,3145.4,4.85467893]
[1768314077437,0.9831563,3146.2,3145.8,0.02205094]
[1768314077856,0.9831563,3146.1,3145.8,0.02205094]
[1768314080039,4.16351301,3146.3,3145.8,0.02205094]
[1768314080236,0.002,3146.3,3145.8,8.05551287]
[1768314080455,0.9851563,3146.3,3145.8,8.05551287]
[1768314080655,0.9851563,3146.3,3145.8,3.20083394]
[1768314081037,0.002,3146.1,3145.8,3.20083394]
[1768314081251,0.002,3146.1,3145.8,4.32428681]
[1768314083084,0.002,3146.1,3145.8,0.02205094]
[1768314083760,0.9851563,3146.1,3145.3,0.248]
[1768314083962,0.9831563,3145.9,3145.3,0.248]
[1768314084169,0.9831563,3145.9,3145.2,0.248]
[1768314084352,0.9831563,3145.8,3145.0,3.17960531]
[1768314084552,0.9831563,3145.8,3145.1,0.248]
[1768314085480,0.9831563,3145.8,3145.1,3.42754032]
[1768314086460,4.16202277,3145.8,3145.0,0.248]
[1768314087586,0.9831563,3145.8,3145.0,0.248]
[1768314088155,0.9831563,3145.8,3145.1,0.01587852]
[1768314088464,0.9831563,3145.8,3145.1,3.17954913]
[1768314089676,4.16200282,3145.8,3145.1,3.17954913]
[1768314089879,4.95486372,3145.8,3145.1,3.17954913]
[1768314090394,1.7760172,3145.8,3145.2,0.01587701]
[1768314090588,1.7760172,3145.8,3145.1,3.17954913]
[1768314091087,1.7760172,3145.8,3145.2,0.01587701]
[1768314091254,0.9831563,3145.8,3145.2,0.015876]
[1768314091654,0.9831563,3145.8,3145.2,3.19528073]
[1768314091868,0.9831563,3145.8,3145.2,3.17940473]
[1768314093600,0.002,3146.1,3145.4,4.85467893]
[1768314093773,0.002,3146.1,3145.4,0.66762868]
[1768314093955,0.002,3146.1,3145.4,0.66862868]
[1768314094156,0.002,3145.8,3145.4,0.66862868]
[1768314094356,0.002,3145.8,3145.4,0.87127123]
[1768314094558,0.002,3145.8,3145.4,0.001]
[1768314101683,0.002,3145.8,3145.4,5.52330761]
[1768314101883,0.002,3145.8,3145.5,0.66762868]
[1768314102288,0.002,3145.8,3145.4,4.85567893]
[1768314103195,0.002,3145.8,3145.4,0.001]
[1768314103707,0.002,3145.8,3145.4,0.249]
[1768314104298,0.002,3145.8,3145.4,0.001]
[1768314104503,0.002,3145.8,3145.4,0.249]
[1768314105202,0.002,3145.8,3145.5,3.17914481]
[1768314106210,0.002,3146.1,3145.6,4.85467893]
[1768314106398,0.90848769,3146.0,3145.6,4.85467893]
[1768314106596,0.90848769,3146.0,3145.5,3.90665686]
[1768314107605,0.91048769,3146.1,3145.5,3.90665686]
[1768314107804,0.91048769,3146.1,3145.5,3.17914481]
[1768314108303,0.002,3146.1,3145.5,3.17914481]
[1768314108504,0.002,3146.1,3145.7,0.001]
[1768314111198,0.002,3146.3,3145.7,4.85567893]
[1768314111599,0.002,3146.3,3145.8,3.17884163]
[1768314111776,0.002,3146.3,3145.8,4.05064314]
[1768314111977,0.002,3146.3,3145.8,7.22948477]
[1768314112283,0.002,3146.3,3145.8,4.05064314]
[1768314112710,0.002,3146.3,3145.8,7.22948477]
[1768314112914,0.002,3146.3,3145.9,0.01586135]
[1768314113277,0.002,3146.3,3145.8,7.22948477]
[1768314113482,0.002,3146.3,3145.9,0.01586135]
[1768314113681,0.002,3146.3,3145.9,3.17867748]
[1768314114293,0.91048769,3146.3,3145.8,0.87180151]
[1768314114493,0.91048769,3146.3,3145.7,0.001]
[1768314115011,0.91048769,3146.3,3145.7,3.17993197]
[1768314116317,0.91048769,3146.3,3145.7,0.001]
[1768314117189,0.002,3146.3,3145.7,0.66862868]
[1768314117415,0.002,3146.3,3145.7,5.52330761]
[1768314117612,0.002,3146.3,3145.8,0.55233076]
[1768314117920,0.90848769,3146.5,3145.9,4.85467893]
[1768314118310,0.90848769,3146.5,3146.0,3.17863954]
[1768314118495,0.85848769,3146.5,3146.0,3.17863954]
[1768314118820,0.002,3146.6,3146.0,6.35727908]
[1768314119004,0.91048769,3146.6,3146.1,1.21399409]
[1768314119189,0.002,3146.6,3146.1,1.21399409]
[1768314119390,0.002,3146.6,3146.1,2.14197695]
[1768314120311,0.90848769,3146.8,3146.2,3.17843748]
[1768314120813,0.90848769,3146.8,3146.2,6.35687496]
[1768314120986,0.002,3146.9,3146.3,0.75708691]
[1768314121181,0.91048769,3146.9,3146.3,0.75708691]
[1768314122218,0.90848769,3146.8,3146.1,4.39248262]
[1768314122516,0.90848769,3146.8,3146.0,0.001]
[1768314122828,0.90848769,3146.7,3146.0,0.001]
[1768314127606,0.90848769,3146.7,3146.1,4.85040054]
[1768314127817,0.90848769,3146.7,3146.0,0.001]
[1768314128733,0.002,3146.9,3146.2,7.30896203]
[1768314129039,0.94285386,3146.9,3146.3,0.7308962]
[1768314131540,0.94285386,3146.9,3146.4,3.17823544]
[1768314131937,0.98057675,3146.8,3146.3,0.7308962]
[1768314132138,0.98057675,3146.8,3146.0,3.17956326]
[1768314132339,0.94085386,3146.8,3146.3,0.001]
[1768314132809,0.98057675,3146.8,3146.3,0.001]
[1768314133628,0.37615389,3147.6,3146.3,0.001]
[1768314133807,0.94085386,3147.4,3146.3,0.001]
[1768314134016,0.94085386,3147.4,3146.3,0.95308707]
[1768314134429,0.96473509,3147.3,3146.3,0.001]
[1768314135215,0.94085386,3147.1,3146.3,0.001]
[1768314135414,0.93160518,3146.9,3146.3,0.001]
[1768314136033,0.00080957,3148.0,3146.3,0.001]
[1768314136243,0.00080957,3148.0,3146.3,4.85140054]
[1768314136244,4.85040054,3147.8,3146.3,4.85140054]
[1768314136541,6.35344196,3147.9,3146.4,0.5169224]
[1768314136745,4.85040054,3147.8,3146.4,0.5169224]
[1768314137118,11.2038425,3147.9,3146.4,0.5169224]
[1768314137315,0.00080957,3148.0,3147.2,4.85040054]
[1768314137635,0.00080957,3148.0,3147.0,4.85040054]
[1768314137946,0.00080957,3148.0,3147.2,0.98433538]
[1768314138145,6.90167423,3148.7,3147.2,0.98433538]
[1768314138444,6.35024964,3148.7,3147.2,0.98433538]
[1768314138660,0.55142459,3149.0,3147.9,0.98433538]
[1768314138861,0.55142459,3149.7,3148.0,0.98433538]
[1768314139028,0.55142459,3149.5,3148.3,0.98433538]
[1768314139743,6.35041594,3149.4,3148.4,0.98433538]
[1768314139926,3.17520797,3149.4,3148.4,0.98433538]
[1768314140255,0.37266326,3149.3,3148.4,0.98433538]
[1768314140956,3.17520797,3149.4,3148.4,0.98433538]
[1768314141453,3.72655938,3149.5,3148.4,0.98433538]
[1768314141875,0.55142459,3149.5,3148.5,0.98433538]
[1768314142038,1.25282214,3149.8,3148.8,0.98433538]
[1768314142383,4.42770972,3149.8,3148.8,0.98433538]
[1768314142582,1.24528324,3149.7,3148.8,0.98433538]
[1768314142923,1.25282214,3149.8,3148.8,0.98433538]
[1768314143667,1.25282214,3149.8,3148.9,0.98433538]
[1768314143847,0.00080851,3150.1,3149.8,0.98433538]
[1768314144633,0.00080941,3151.2,3150.1,0.98433538]
[1768314144834,6.89841453,3151.1,3149.6,0.98433538]
[1768314145084,0.00080941,3151.2,3150.3,0.98433538]
[1768314145230,0.55142459,3151.1,3149.3,0.98433538]
[1768314145429,4.85040054,3150.6,3149.3,0.98433538]
[1768314145673,0.002,3150.8,3149.7,0.98433538]
[1768314145877,0.002,3150.8,3149.9,0.98433538]
[1768314146476,4.85040054,3150.4,3149.3,0.98433538]
[1768314146768,0.002,3150.8,3149.7,0.98433538]
[1768314147082,0.002,3150.8,3149.8,0.98433538]
[1768314147280,4.85240054,3150.8,3149.8,0.98433538]
[1768314147438,0.48524005,3150.7,3149.8,0.98433538]
[1768314147638,0.002,3150.8,3149.8,0.98433538]
[1768314148178,0.002,3150.8,3149.3,0.98433538]
[1768314148179,0.6287626,3150.8,3149.3,0.98433538]
[1768314148385,0.6267626,3150.4,3148.7,0.98433538]
[1768314148738,0.6267626,3150.0,3148.7,0.98433538]
[1768314149555,0.6267626,3150.3,3148.9,0.98433538]
[1768314149754,6.3484002,3150.4,3149.1,0.98433538]
[1768314149955,3.1742001,3150.4,3149.1,0.98433538]
[1768314150169,6.3484002,3150.4,3149.1,0.98433538]
[1768314150476,6.3484002,3150.4,3148.8,0.98433538]
[1768314150477,0.6267626,3150.3,3148.8,0.98433538]
[1768314150646,0.6267626,3150.1,3148.5,0.98433538]
[1768314150971,0.6267626,3150.1,3148.7,4.16024055]
[1768314151153,0.6267626,3150.1,3148.8,0.98433538]
[1768314151351,0.6267626,3149.9,3148.7,3.17590517]
[1768314151558,0.16416989,3150.0,3148.9,0.98433538]
[1768314151755,3.3388542,3150.0,3148.9,4.16002344]
[1768314152571,0.16416989,3150.0,3149.0,1.01609149]
[1768314152873,3.80120507,3150.2,3149.0,1.01609149]
[1768314153094,0.002,3150.8,3149.2,0.98433538]
[1768314153247,0.002,3150.8,3149.4,0.98433538]
[1768314153601,0.002,3150.8,3149.6,0.98433538]
[1768314153893,0.31956301,3150.8,3149.8,0.98433538]
[1768314154182,3.1758251,3150.8,3149.8,0.98433538]
[1768314154751,0.002,3150.8,3149.8,0.98433538]
[1768314155149,3.1758682,3150.8,3149.8,0.98433538]
[1768314155371,6.3497364,3150.8,3149.8,0.98433538]
[1768314155580,0.63497364,3150.7,3149.8,0.98433538]
[1768314155879,6.3479972,3150.6,3149.8,0.98433538]
[1768314156052,3.80890403,3150.7,3149.5,0.90121207]
[1768314156262,3.17393039,3150.7,3149.5,0.90121207]
[1768314156589,0.002,3150.8,3149.9,0.90121207]
[1768314156747,3.17579855,3150.8,3149.9,0.90121207]
[1768314157086,3.17579855,3150.8,3149.6,0.90121207]
[1768314157258,0.31757986,3150.7,3149.7,0.90121207]
[1768314157856,0.002,3150.5,3149.6,0.90121207]
[1768314160142,0.002,3150.5,3149.5,0.90121207]
[1768314160346,0.002,3150.5,3149.6,4.10796831]
[1768314160586,0.002,3150.5,3149.7,0.90121207]
[1768314160791,0.35135115,3150.5,3149.7,0.90121207]
[1768314161092,0.35135115,3150.5,3149.4,3.17516272]
[1768314161257,0.35135115,3150.5,3149.3,0.90121207]
[1768314161464,0.35135115,3150.5,3149.3,4.07644255]
[1768314161659,0.35135115,3150.5,3149.3,0.90121207]
[1768314161862,0.6267626,3150.4,3149.0,0.90121207]
[1768314162081,6.97536432,3150.3,3149.0,0.90121207]
[1768314162278,1.0149597,3150.2,3149.0,0.90121207]
[1768314162592,0.6267626,3150.1,3148.7,0.90121207]
[1768314163185,0.25952256,3150.0,3148.7,0.90121207]
[1768314163401,5.92344572,3149.9,3148.7,0.90121207]
[1768314163694,0.6267626,3149.9,3148.8,0.03175813]
[1768314163900,0.6267626,3149.9,3148.8,3.17575785]
[1768314164058,6.34900478,3150.1,3148.8,7.25278292]
[1768314164246,6.34900478,3150.1,3148.9,0.90121207]
[1768314164852,9.52350717,3150.1,3148.9,0.90121207]
[1768314165965,6.34900478,3150.1,3148.9,0.90121207]
[1768314166170,0.79907271,3150.0,3148.9,0.93296919]
[1768314166371,0.79907271,3150.0,3149.0,0.90121207]
[1768314167983,6.3494079,3149.9,3149.0,0.90121207]
[1768314169972,9.52411185,3149.9,3148.7,0.90121207]
[1768314170497,9.52411185,3149.9,3149.2,0.001]
[1768314170692,10.15087445,3149.9,3149.2,0.001]
[1768314171060,5.92344572,3149.7,3148.6,0.001]
[1768314171378,5.92344572,3149.7,3148.4,0.90202099]
[1768314171379,6.18296828,3149.7,3148.4,0.90202099]
[1768314171707,1.65458465,3149.8,3148.4,0.00080892]
[1768314171708,6.82246548,3149.4,3148.4,0.00080892]
[1768314171913,7.57803037,3149.8,3148.4,0.90202099]
[1768314172074,0.25952256,3149.6,3148.4,0.90202099]
[1768314172266,0.97842392,3149.5,3148.4,0.90202099]
[1768314173986,9.52562391,3149.4,3148.4,0.90202099]
[1768314175720,6.35041594,3149.4,3148.4,0.90202099]
[1768314176273,6.35041594,3149.4,3148.6,0.90121207]
[1768314176508,4.15356434,3149.5,3148.6,0.90121207]
[1768314176804,0.6267626,3150.4,3148.8,0.90121207]
[1768314176805,12.69720344,3150.3,3148.8,0.90121207]
[1768314177004,0.6267626,3150.1,3148.8,0.90121207]
[1768314177204,0.6267626,3150.1,3148.4,0.90202099]
[1768314177205,0.88628516,3149.8,3148.4,0.90202099]
[1768314178490,9.52471662,3149.7,3148.4,0.90202099]
[1768314178796,1.04110018,3149.6,3148.4,0.90202099]
[1768314180117,1.04110018,3149.6,3148.5,0.90121207]
[1768314180302,0.6267626,3149.5,3148.5,0.03176115]
[1768314180480,0.6267626,3149.5,3148.4,0.00080892]
[1768314180481,9.81690762,3149.4,3148.0,0.87102099]
[1768314180678,9.78514647,3149.4,3148.0,0.87102099]
[1768314180901,0.03176115,3149.3,3148.2,0.90121207]
[1768314181514,6.35081924,3149.2,3148.2,0.90121207]
[1768314181809,0.98755269,3149.1,3148.2,0.90121207]
[1768314183208,0.98755269,3149.1,3148.3,0.001]
[1768314183613,6.3512226,3149.0,3148.3,0.90221207]
[1768314183790,0.03176115,3148.9,3148.3,0.90221207]
[1768314184317,6.3512226,3149.0,3148.3,0.90221207]
[1768314184524,0.73070141,3148.9,3148.3,0.90221207]
[1768314184831,3.1756113,3149.0,3148.3,0.90221207]
[1768314186433,6.3512226,3149.0,3148.3,0.90221207]
[1768314186614,3.1756113,3149.0,3148.3,0.90221207]
[1768314188409,3.1756113,3149.0,3148.3,0.001]
[1768314189139,6.38298375,3149.0,3148.3,0.001]
[1768314189441,0.73387753,3148.9,3148.3,0.001]
[1768314190435,6.38217709,3149.4,3148.3,0.92536152]
[1768314190736,9.55738506,3149.4,3148.3,0.92536152]
[1768314191040,9.52562391,3149.4,3148.3,0.92536152]
[1768314191240,0.03176115,3149.3,3148.3,0.92536152]
[1768314192924,6.35081924,3149.2,3148.3,0.92536152]
[1768314193131,0.98755441,3149.1,3148.3,0.92536152]
[1768314193441,4.84520878,3148.7,3148.3,0.001]
[1768314194356,0.03176115,3148.6,3148.3,0.001]
[1768314194527,4.84520878,3147.9,3147.6,0.92436152]
[1768314194733,5.81425054,3147.9,3147.6,0.92436152]
[1768314194907,8.99102259,3147.9,3146.8,0.92436152]
[1768314195109,4.14581381,3147.9,3146.8,0.92436152]
[1768314195327,0.0127346,3148.7,3147.6,0.92436152]
[1768314195328,6.35202946,3148.6,3147.6,0.92436152]
[1768314195530,0.98095634,3148.5,3147.0,0.03177629]
[1768314195743,0.98095634,3148.5,3147.0,1.01448934]
[1768314195972,1.01271749,3148.5,3147.1,0.03177528]
[1768314196684,1.01271749,3148.5,3146.7,0.98271305]
[1768314196853,0.98095634,3148.3,3146.8,0.73387799]
[1768314197181,0.98095634,3148.1,3146.3,0.00180998]
[1768314197373,0.98095634,3148.1,3146.5,3.17808052]
[1768314197543,0.98095634,3148.0,3146.4,0.98271305]
[1768314197744,0.98095634,3148.0,3146.6,3.17803143]
[1768314197948,0.25952256,3148.1,3146.6,0.98271305]
[1768314198146,0.98095634,3147.9,3146.8,3.17780331]
[1768314198478,0.66123591,3148.0,3146.8,4.16051636]
[1768314198667,0.98095634,3147.9,3146.7,3.1778876]
[1768314199372,0.98095634,3147.7,3146.3,3.18009901]
[1768314199583,0.98095634,3147.7,3146.3,3.59638022]
[1768314200193,0.98095634,3147.7,3146.3,7.75742972]
[1768314201061,0.98095634,3147.7,3146.3,3.59638022]
[1768314201269,0.98095634,3147.5,3146.3,0.41809119]
[1768314201476,0.98095634,3147.3,3146.3,6.77473483]
[1768314201682,0.98095634,3147.6,3146.4,1.0144954]
[1768314201864,6.35393768,3147.7,3146.4,1.0144954]
[1768314202800,0.98095634,3147.6,3146.4,0.98271305]
[1768314202997,0.98095634,3147.6,3146.5,1.01449439]
[1768314203298,3.17696884,3147.7,3146.5,1.01449439]
[1768314203500,6.3536495,3147.8,3146.6,4.16074648]
[1768314203701,6.3536495,3147.8,3146.7,0.41925278]
[1768314203919,6.38541065,3147.8,3146.7,0.41925278]
[1768314204406,7.36636699,3147.8,3146.6,0.98271305]
[1768314204573,0.98095634,3147.7,3146.6,0.98271305]
[1768314205294,0.03176115,3147.6,3146.6,0.98271305]
[1768314205594,3.1771247,3147.5,3146.6,0.98271305]
[1768314207275,3.1771247,3147.5,3146.7,0.98271305]
[1768314207607,3.1771247,3147.5,3146.8,0.98271305]
[1768314208008,3.2088083,3147.6,3146.8,0.98271305]
[1768314208208,0.03176115,3147.6,3146.8,0.98271305]
[1768314208507,0.98095634,3147.6,3146.7,3.59395696]
[1768314209008,0.98095634,3147.6,3146.7,0.41607356]
[1768314209215,0.98095634,3147.6,3146.7,3.59399436]
[1768314209507,3.17709758,3147.6,3146.7,4.57670741]
[1768314209711,0.002,3147.4,3146.7,4.57670741]
[1768314210477,0.002,3147.4,3146.8,0.98271305]
[1768314210676,0.002,3147.7,3147.4,0.98271305]
[1768314210913,0.03176115,3148.9,3147.4,0.98271305]
[1768314211128,6.3514243,3148.9,3147.4,0.98271305]
[1768314211333,0.98095634,3148.7,3147.4,0.66514039]
[1768314211498,0.98095634,3148.5,3147.5,6.3542494]
[1768314212908,0.98095634,3148.8,3147.5,6.3542494]
[1768314213214,0.98095634,3148.8,3147.5,3.1771247]
[1768314213417,1.01271749,3148.7,3147.5,3.1771247]
[1768314213620,1.01271749,3148.7,3147.5,0.70194672]
[1768314213825,1.01271749,3148.7,3146.8,3.17777529]
[1768314213826,0.98095634,3148.1,3146.8,3.17777529]
[1768314214126,0.03176115,3148.7,3146.7,0.41607356]
[1768314214127,0.98095634,3147.9,3146.7,0.41607356]
[1768314214335,1.01271749,3147.8,3146.5,3.17806634]
[1768314214706,1.01271749,3147.8,3146.3,3.18007973]
[1768314214930,0.95608576,3147.6,3146.3,3.1053548]
[1768314215121,0.03176115,3147.5,3146.3,3.1053548]
[1768314215433,0.98784691,3147.6,3146.3,4.08413916]
[1768314215726,0.98784691,3147.6,3146.4,0.72943598]
[1768314216097,6.30993142,3147.7,3146.5,1.0105657]
[1768314216600,3.13300859,3147.7,3146.5,1.0105657]
[1768314216939,0.00080998,3148.0,3146.7,0.97878436]
[1768314217227,0.00080998,3148.0,3146.9,0.97878436]
[1768314217451,0.00080998,3148.0,3147.1,0.97878436]
[1768314217625,0.00080998,3148.0,3147.3,0.97878436]
[1768314217827,0.00080998,3148.0,3147.0,0.97878436]
[1768314219135,0.00080998,3148.0,3147.2,0.97878436]
[1768314219365,0.00080998,3148.0,3147.3,0.97878436]
[1768314220582,0.00080998,3148.0,3147.5,0.97878436]
[1768314220875,6.35231654,3148.5,3147.8,0.97878436]
[1768314221069,6.35231654,3148.5,3147.5,0.97878436]
[1768314221375,6.35202946,3148.6,3147.5,0.97878436]
[1768314221538,6.35202946,3148.6,3147.6,0.41877784]
[1768314222293,6.35202946,3148.6,3147.2,3.17742286]
[1768314222294,0.03176115,3148.5,3147.2,0.97878436]
[1768314222657,0.002,3147.7,3147.2,0.97878436]
[1768314222857,0.002,3147.7,3147.3,3.17732488]
[1768314223069,0.002,3147.7,3147.2,4.15619373]
[1768314223294,0.002,3147.7,3147.3,0.41561937]
[1768314224174,0.002,3147.7,3147.3,3.59292622]
[1768314224382,0.002,3147.7,3147.3,0.41561937]
[1768314224889,0.002,3147.7,3147.3,3.59294083]
[1768314225090,0.002,3148.0,3147.7,0.97878436]
[1768314225503,0.95808576,3149.0,3147.7,3.5924958]
[1768314225684,0.95808576,3149.0,3147.7,3.62426502]
[1768314225685,7.43258151,3149.0,3147.7,3.62426502]
[1768314226020,6.4447346,3149.0,3147.7,3.5924958]
[1768314226297,1.69273517,3148.9,3147.8,0.35924958]
[1768314226492,2.64882093,3148.9,3147.8,0.35924958]
[1768314226663,0.03176115,3148.8,3147.8,0.35924958]
[1768314226865,2.64882093,3148.9,3147.8,0.35924958]
[1768314227101,2.68058208,3148.9,3147.8,0.35924958]
[1768314227606,3.175813,3148.8,3147.9,1.33239887]
[1768314227760,3.175813,3148.8,3148.0,0.97878436]
[1768314228099,9.60768777,3149.0,3148.0,0.97878436]
[1768314228263,12.78337554,3149.0,3148.0,0.97878436]
[1768314228888,12.78337554,3149.0,3147.9,0.35361451]
[1768314229197,6.35337554,3149.0,3148.0,0.7066487]
[1768314229794,0.98784691,3148.9,3147.9,0.35361451]
[1768314229994,0.98784691,3148.9,3147.7,3.17686553]
[1768314230397,0.98784691,3148.9,3147.8,3.1767991]
[1768314230896,0.98784691,3148.9,3147.9,3.17671916]
[1768314231096,0.98784691,3148.9,3147.9,3.17665711]
[1768314231267,1.72196916,3148.9,3147.9,3.81201352]
[1768314231769,3.175813,3148.8,3147.9,3.81201352]
[1768314231968,3.17576081,3148.9,3148.0,0.97878436]
[1768314233542,3.17576081,3148.9,3148.0,1.01055056]
[1768314233804,6.35337211,3149.0,3148.0,4.9553189]
[1768314233967,6.35337211,3149.0,3148.0,0.79992851]
[1768314234298,0.98784691,3148.9,3147.7,0.97878436]
[1768314234471,0.98784691,3148.9,3147.4,0.97878436]
[1768314234671,0.98784691,3148.9,3147.4,4.18776528]
[1768314235079,0.95808576,3148.6,3147.4,4.18776528]
[1768314235279,0.03176115,3148.5,3147.5,0.97878436]
[1768314235501,0.002,3148.6,3147.8,0.97878436]
[1768314235676,0.002,3148.6,3147.9,0.97878436]
[1768314237007,0.002,3148.6,3147.9,1.39434005]
[1768314237692,0.95808576,3148.6,3147.3,0.97878436]
[1768314238003,0.98984691,3148.6,3147.0,0.97878436]
[1768314238311,0.95608576,3148.4,3147.0,0.97878436]
[1768314238478,0.98784691,3148.4,3147.0,6.35523716]
[1768314238672,1.41261205,3148.3,3147.1,1.64926109]
[1768314238880,0.45652629,3148.3,3147.1,1.64926109]
[1768314239174,0.95608576,3148.2,3147.1,0.63870145]
[1768314239496,0.95608576,3148.2,3146.9,3.17770894]
[1768314239674,0.95608576,3148.2,3147.0,3.17761554]
[1768314240006,0.95608576,3148.2,3147.0,4.1563999]
[1768314240373,6.35303834,3148.1,3147.0,0.97878436]
[1768314240607,0.95608576,3148.0,3146.8,0.03177831]
[1768314240777,1.68699817,3147.9,3147.0,3.1776238]
[1768314241103,6.35303834,3148.1,3147.0,7.36581393]
[1768314241310,6.35303834,3148.1,3147.1,0.97878436]
[1768314241498,3.17651917,3148.1,3147.1,0.97878436]
[1768314242374,0.95808576,3148.6,3147.3,0.97878436]
[1768314242602,6.38399237,3148.5,3147.3,0.97878436]
[1768314242919,1.05181195,3148.4,3147.4,0.97878436]
[1768314243296,1.0835731,3148.4,3147.4,0.97878436]
[1768314244578,1.0835731,3148.4,3147.5,3.1771247]
[1768314244579,3.17631737,3148.3,3147.5,3.1771247]
[1768314245217,3.17631737,3148.3,3147.5,4.11107566]
[1768314245792,6.35263474,3148.3,3147.5,0.93395096]
[1768314246008,7.09307941,3148.3,3147.5,0.93395096]
[1768314246504,7.09307941,3148.3,3147.4,3.17717694]
[1768314246705,3.91676204,3148.3,3147.4,3.17717694]
[1768314247018,3.17631737,3148.3,3147.4,3.17717694]
[1768314247822,6.35263474,3148.3,3147.8,0.001]
[1768314248137,0.93315661,3148.2,3147.8,0.001]
[1768314248495,6.35263474,3148.3,3147.8,0.001]
[1768314248692,0.63526347,3148.2,3147.8,0.001]
[1768314250931,6.35303834,3148.1,3147.8,0.001]
[1768314251407,0.03176115,3148.0,3147.2,3.17436635]
[1768314251614,6.35303834,3148.1,3147.1,4.11142998]
[1768314251816,7.17694533,3148.1,3147.1,4.11142998]
[1768314252010,7.14518418,3148.1,3147.1,4.11142998]
[1768314252215,7.14518418,3148.1,3147.2,0.248]
[1768314252413,7.14518418,3148.1,3147.2,1.18195096]
[1768314252613,3.96866501,3148.1,3147.3,0.93395096]
[1768314252806,6.60123122,3148.5,3147.5,0.93395096]
[1768314253007,0.03176115,3148.4,3147.5,0.93395096]
[1768314254144,0.03176115,3148.4,3147.6,0.93395096]
[1768314254440,0.63839924,3148.3,3147.6,0.93395096]
[1768314255136,3.17641827,3148.2,3147.6,0.93395096]
[1768314256130,0.002,3148.6,3147.6,0.93395096]
[1768314256131,0.002,3148.6,3147.7,0.92435124]
[1768314256298,0.002,3148.6,3147.8,0.92435124]
[1768314257331,0.002,3148.6,3148.0,0.92435124]
[1768314257535,0.002,3148.6,3148.1,1.33445846]
[1768314258421,0.002,3148.6,3148.2,0.248]
[1768314259116,0.002,3148.9,3148.3,0.92435124]
[1768314260631,0.002,3148.9,3148.5,0.92435124]
[1768314260827,0.002,3148.9,3148.6,0.92435124]
[1768314262327,0.002,3149.3,3148.6,0.92435124]
[1768314262722,0.002,3149.3,3148.5,0.72767957]
[1768314263102,0.002,3149.3,3148.5,3.90375961]
[1768314263929,0.03376115,3149.3,3148.5,3.90375961]
[1768314264115,0.002,3149.3,3148.5,3.90375961]
[1768314264904,0.002,3149.3,3148.5,4.82811085]
[1768314265219,0.002,3149.3,3148.6,0.48281109]
[1768314268730,0.002,3149.3,3148.3,3.20807363]
[1768314268933,0.002,3149.3,3148.5,3.17605565]
[1768314270145,0.002,3149.3,3148.3,3.20807363]
[1768314270146,0.002,3149.3,3148.4,3.17621649]
[1768314270844,0.97500444,3149.0,3147.5,0.92435124]
[1768314271011,1.00676559,3149.0,3147.9,0.248]
[1768314271714,1.00676559,3149.0,3147.8,0.001]
[1768314271715,0.97300444,3148.9,3147.8,0.001]
[1768314272114,0.97300444,3148.7,3147.8,0.001]
[1768314272316,0.97300444,3148.6,3147.8,0.001]
[1768314272816,0.97300444,3148.6,3148.2,0.001]
[1768314273617,0.73246304,3148.7,3148.2,0.001]
[1768314274439,3.17601473,3148.6,3148.2,0.001]
[1768314275345,6.35202946,3148.6,3148.2,0.001]
[1768314275528,0.70844925,3148.5,3148.2,0.001]
[1768314275930,1.66439586,3148.5,3148.2,0.001]
[1768314277128,4.84053894,3148.5,3148.2,0.001]
[1768314278140,4.84053894,3148.5,3147.8,0.001]
[1768314278141,0.95594661,3148.4,3147.8,0.001]
[1768314278847,0.70844925,3148.5,3147.8,0.99470569]
[1768314279156,3.17601473,3148.6,3147.8,0.99470569]
[1768314279658,3.9084079,3148.7,3147.8,0.99470569]
[1768314279955,7.30783633,3148.7,3147.8,0.001]
[1768314280160,0.95594661,3148.6,3147.8,0.249]
[1768314280357,6.35188972,3148.7,3147.8,0.001]
[1768314280662,7.33959748,3148.7,3147.8,0.249]
[1768314280866,7.30783633,3148.7,3147.8,0.249]
[1768314281329,7.30783633,3148.7,3147.8,3.42579798]
[1768314281528,0.73078363,3148.6,3147.8,3.42579798]
[1768314282042,0.73078363,3148.6,3147.8,0.249]
[1768314282231,0.73078363,3148.6,3147.8,3.42581294]
[1768314282433,0.73078363,3148.6,3147.8,4.41951863]
[1768314282633,3.17611561,3148.5,3147.8,4.41951863]
[1768314282828,0.39068992,3148.4,3147.8,4.41951863]
[1768314283028,0.39068992,3148.4,3147.8,0.001]
[1768314283357,0.39068992,3148.4,3147.9,0.99370569]
[1768314284761,0.39068992,3148.4,3147.8,0.249]
[1768314284931,3.56696904,3148.4,3147.8,0.249]
[1768314285130,0.3566969,3148.3,3148.1,0.001]
[1768314286557,3.56694708,3148.4,3148.1,0.001]
[1768314286938,6.77496539,3148.4,3148.1,0.001]
[1768314287162,6.74320424,3148.4,3148.1,0.001]
[1768314287360,3.56694708,3148.4,3148.1,0.001]